{"text_format":"1","workbook":"xlsx","n_sheets":3,"sheets":["Feuil1","Feuil2","Feuil3"],"not_rendered":{"charts":0,"images":0,"macros":0,"external_links":0,"defined_names":0,"comments":0,"pivot_tables":0},"unopened":[],"bounds":{"document_bytes":16777216,"sheet_cells":100000,"rows_first":2000,"rows_last":500,"rows_between":2000,"halvings":0,"cell_chars":16384,"cell_head_chars":4096},"cells_cut":0,"cells_raw":0,"read":"whole","date_system":"1900"}

{"sheet":"Feuil1","index":0,"n_rows":14,"n_cols":28,"rows_kept":14,"cut":false,"hidden":false,"merged":[[1,10,1,24],[4,24,11,24],[4,16,11,16],[4,1,4,5],[4,23,11,23],[4,11,11,11],[4,10,11,10],[4,18,11,18],[4,19,11,19],[4,20,11,20],[4,21,11,21],[4,22,11,22],[4,13,11,13],[4,14,11,14],[4,15,11,15],[4,17,11,17],[4,12,11,12],[4,25,11,25],[13,10,13,25]]}
[]
[null,null,null,null,null,null,null,null,null,null,"الشكل رقم 1"]
[null,null,null,null,null,null,null,null,null,null,{"$f":"IF($A8>COUNTIF($J3:J3,\"عسل يمين \"),\"عسل يمين \",IF($B8>COUNTIF($J3:J3,\"حبوب اللقاح\"),\"حبوب اللقاح\",IF($C8>COUNTIF($J3:J3,\"مضاف اساس\"),\"مضاف اساس\",IF($D8>COUNTIF($J3:J3,\"حضنة مفتوحة\"),\"حضنة مفتوحة\",IF($E8>COUNTIF($J3:J3,\"حضنة مغلقة\"),\"حضنة مغلقة\",IF($F8>COUNTIF($J3:J3,\"مضاف الاساس\"),\"مضاف الاساس\",IF($G8>COUNTIF($J3:J3,\"حبوب اللقاح يسار\"),\"حبوب اللقاح يسار\",IF($H8>COUNTIF($J3:J3,\"عسل يسار \"),\"عسل يسار \",\"\"))))))))","v":"عسل يمين "},{"$f":"IF($A8>COUNTIF($J3:K3,\"عسل يمين \"),\"عسل يمين \",IF($B8>COUNTIF($J3:K3,\"حبوب اللقاح\"),\"حبوب اللقاح\",IF($C8>COUNTIF($J3:K3,\"مضاف اساس\"),\"مضاف اساس\",IF($D8>COUNTIF($J3:K3,\"حضنة مفتوحة\"),\"حضنة مفتوحة\",IF($E8>COUNTIF($J3:K3,\"حضنة مغلقة\"),\"حضنة مغلقة\",IF($F8>COUNTIF($J3:K3,\"مضاف الاساس\"),\"مضاف الاساس\",IF($G8>COUNTIF($J3:K3,\"حبوب اللقاح يسار\"),\"حبوب اللقاح يسار\",IF($H8>COUNTIF($J3:K3,\"عسل يسار \"),\"عسل يسار \",\"\"))))))))","v":"عسل يمين "},{"$f":"IF($A8>COUNTIF($J3:L3,\"عسل يمين \"),\"عسل يمين \",IF($B8>COUNTIF($J3:L3,\"حبوب اللقاح\"),\"حبوب اللقاح\",IF($C8>COUNTIF($J3:L3,\"مضاف اساس\"),\"مضاف اساس\",IF($D8>COUNTIF($J3:L3,\"حضنة مفتوحة\"),\"حضنة مفتوحة\",IF($E8>COUNTIF($J3:L3,\"حضنة مغلقة\"),\"حضنة مغلقة\",IF($F8>COUNTIF($J3:L3,\"مضاف الاساس\"),\"مضاف الاساس\",IF($G8>COUNTIF($J3:L3,\"حبوب اللقاح يسار\"),\"حبوب اللقاح يسار\",IF($H8>COUNTIF($J3:L3,\"عسل يسار \"),\"عسل يسار \",\"\"))))))))","v":"حبوب اللقاح"},{"$f":"IF($A8>COUNTIF($J3:M3,\"عسل يمين \"),\"عسل يمين \",IF($B8>COUNTIF($J3:M3,\"حبوب اللقاح\"),\"حبوب اللقاح\",IF($C8>COUNTIF($J3:M3,\"مضاف اساس\"),\"مضاف اساس\",IF($D8>COUNTIF($J3:M3,\"حضنة مفتوحة\"),\"حضنة مفتوحة\",IF($E8>COUNTIF($J3:M3,\"حضنة مغلقة\"),\"حضنة مغلقة\",IF($F8>COUNTIF($J3:M3,\"مضاف الاساس\"),\"مضاف الاساس\",IF($G8>COUNTIF($J3:M3,\"حبوب اللقاح يسار\"),\"حبوب اللقاح يسار\",IF($H8>COUNTIF($J3:M3,\"عسل يسار \"),\"عسل يسار \",\"\"))))))))","v":"مضاف اساس"},{"$f":"IF($A8>COUNTIF($J3:N3,\"عسل يمين \"),\"عسل يمين \",IF($B8>COUNTIF($J3:N3,\"حبوب اللقاح\"),\"حبوب اللقاح\",IF($C8>COUNTIF($J3:N3,\"مضاف اساس\"),\"مضاف اساس\",IF($D8>COUNTIF($J3:N3,\"حضنة مفتوحة\"),\"حضنة مفتوحة\",IF($E8>COUNTIF($J3:N3,\"حضنة مغلقة\"),\"حضنة مغلقة\",IF($F8>COUNTIF($J3:N3,\"مضاف الاساس\"),\"مضاف الاساس\",IF($G8>COUNTIF($J3:N3,\"حبوب اللقاح يسار\"),\"حبوب اللقاح يسار\",IF($H8>COUNTIF($J3:N3,\"عسل يسار \"),\"عسل يسار \",\"\"))))))))","v":"حضنة مفتوحة"},{"$f":"IF($A8>COUNTIF($J3:O3,\"عسل يمين \"),\"عسل يمين \",IF($B8>COUNTIF($J3:O3,\"حبوب اللقاح\"),\"حبوب اللقاح\",IF($C8>COUNTIF($J3:O3,\"مضاف اساس\"),\"مضاف اساس\",IF($D8>COUNTIF($J3:O3,\"حضنة مفتوحة\"),\"حضنة مفتوحة\",IF($E8>COUNTIF($J3:O3,\"حضنة مغلقة\"),\"حضنة مغلقة\",IF($F8>COUNTIF($J3:O3,\"مضاف الاساس\"),\"مضاف الاساس\",IF($G8>COUNTIF($J3:O3,\"حبوب اللقاح يسار\"),\"حبوب اللقاح يسار\",IF($H8>COUNTIF($J3:O3,\"عسل يسار \"),\"عسل يسار \",\"\"))))))))","v":"حضنة مفتوحة"},{"$f":"IF($A8>COUNTIF($J3:P3,\"عسل يمين \"),\"عسل يمين \",IF($B8>COUNTIF($J3:P3,\"حبوب اللقاح\"),\"حبوب اللقاح\",IF($C8>COUNTIF($J3:P3,\"مضاف اساس\"),\"مضاف اساس\",IF($D8>COUNTIF($J3:P3,\"حضنة مفتوحة\"),\"حضنة مفتوحة\",IF($E8>COUNTIF($J3:P3,\"حضنة مغلقة\"),\"حضنة مغلقة\",IF($F8>COUNTIF($J3:P3,\"مضاف الاساس\"),\"مضاف الاساس\",IF($G8>COUNTIF($J3:P3,\"حبوب اللقاح يسار\"),\"حبوب اللقاح يسار\",IF($H8>COUNTIF($J3:P3,\"عسل يسار \"),\"عسل يسار \",\"\"))))))))","v":"حضنة مفتوحة"},{"$f":"IF($A8>COUNTIF($J3:Q3,\"عسل يمين \"),\"عسل يمين \",IF($B8>COUNTIF($J3:Q3,\"حبوب اللقاح\"),\"حبوب اللقاح\",IF($C8>COUNTIF($J3:Q3,\"مضاف اساس\"),\"مضاف اساس\",IF($D8>COUNTIF($J3:Q3,\"حضنة مفتوحة\"),\"حضنة مفتوحة\",IF($E8>COUNTIF($J3:Q3,\"حضنة مغلقة\"),\"حضنة مغلقة\",IF($F8>COUNTIF($J3:Q3,\"مضاف الاساس\"),\"مضاف الاساس\",IF($G8>COUNTIF($J3:Q3,\"حبوب اللقاح يسار\"),\"حبوب اللقاح يسار\",IF($H8>COUNTIF($J3:Q3,\"عسل يسار \"),\"عسل يسار \",\"\"))))))))","v":"حضنة مغلقة"},{"$f":"IF($A8>COUNTIF($J3:R3,\"عسل يمين \"),\"عسل يمين \",IF($B8>COUNTIF($J3:R3,\"حبوب اللقاح\"),\"حبوب اللقاح\",IF($C8>COUNTIF($J3:R3,\"مضاف اساس\"),\"مضاف اساس\",IF($D8>COUNTIF($J3:R3,\"حضنة مفتوحة\"),\"حضنة مفتوحة\",IF($E8>COUNTIF($J3:R3,\"حضنة مغلقة\"),\"حضنة مغلقة\",IF($F8>COUNTIF($J3:R3,\"مضاف الاساس\"),\"مضاف الاساس\",IF($G8>COUNTIF($J3:R3,\"حبوب اللقاح يسار\"),\"حبوب اللقاح يسار\",IF($H8>COUNTIF($J3:R3,\"عسل يسار \"),\"عسل يسار \",\"\"))))))))","v":"حضنة مغلقة"},{"$f":"IF($A8>COUNTIF($J3:S3,\"عسل يمين \"),\"عسل يمين \",IF($B8>COUNTIF($J3:S3,\"حبوب اللقاح\"),\"حبوب اللقاح\",IF($C8>COUNTIF($J3:S3,\"مضاف اساس\"),\"مضاف اساس\",IF($D8>COUNTIF($J3:S3,\"حضنة مفتوحة\"),\"حضنة مفتوحة\",IF($E8>COUNTIF($J3:S3,\"حضنة مغلقة\"),\"حضنة مغلقة\",IF($F8>COUNTIF($J3:S3,\"مضاف الاساس\"),\"مضاف الاساس\",IF($G8>COUNTIF($J3:S3,\"حبوب اللقاح يسار\"),\"حبوب اللقاح يسار\",IF($H8>COUNTIF($J3:S3,\"عسل يسار \"),\"عسل يسار \",\"\"))))))))","v":"مضاف الاساس"},{"$f":"IF($A8>COUNTIF($J3:T3,\"عسل يمين \"),\"عسل يمين \",IF($B8>COUNTIF($J3:T3,\"حبوب اللقاح\"),\"حبوب اللقاح\",IF($C8>COUNTIF($J3:T3,\"مضاف اساس\"),\"مضاف اساس\",IF($D8>COUNTIF($J3:T3,\"حضنة مفتوحة\"),\"حضنة مفتوحة\",IF($E8>COUNTIF($J3:T3,\"حضنة مغلقة\"),\"حضنة مغلقة\",IF($F8>COUNTIF($J3:T3,\"مضاف الاساس\"),\"مضاف الاساس\",IF($G8>COUNTIF($J3:T3,\"حبوب اللقاح يسار\"),\"حبوب اللقاح يسار\",IF($H8>COUNTIF($J3:T3,\"عسل يسار \"),\"عسل يسار \",\"\"))))))))","v":"حبوب اللقاح يسار"},{"$f":"IF($A8>COUNTIF($J3:U3,\"عسل يمين \"),\"عسل يمين \",IF($B8>COUNTIF($J3:U3,\"حبوب اللقاح\"),\"حبوب اللقاح\",IF($C8>COUNTIF($J3:U3,\"مضاف اساس\"),\"مضاف اساس\",IF($D8>COUNTIF($J3:U3,\"حضنة مفتوحة\"),\"حضنة مفتوحة\",IF($E8>COUNTIF($J3:U3,\"حضنة مغلقة\"),\"حضنة مغلقة\",IF($F8>COUNTIF($J3:U3,\"مضاف الاساس\"),\"مضاف الاساس\",IF($G8>COUNTIF($J3:U3,\"حبوب اللقاح يسار\"),\"حبوب اللقاح يسار\",IF($H8>COUNTIF($J3:U3,\"عسل يسار \"),\"عسل يسار \",\"\"))))))))","v":"عسل يسار "},{"$f":"IF($A8>COUNTIF($J3:V3,\"عسل يمين \"),\"عسل يمين \",IF($B8>COUNTIF($J3:V3,\"حبوب اللقاح\"),\"حبوب اللقاح\",IF($C8>COUNTIF($J3:V3,\"مضاف اساس\"),\"مضاف اساس\",IF($D8>COUNTIF($J3:V3,\"حضنة مفتوحة\"),\"حضنة مفتوحة\",IF($E8>COUNTIF($J3:V3,\"حضنة مغلقة\"),\"حضنة مغلقة\",IF($F8>COUNTIF($J3:V3,\"مضاف الاساس\"),\"مضاف الاساس\",IF($G8>COUNTIF($J3:V3,\"حبوب اللقاح يسار\"),\"حبوب اللقاح يسار\",IF($H8>COUNTIF($J3:V3,\"عسل يسار \"),\"عسل يسار \",\"\"))))))))","v":"عسل يسار "},{"$f":"IF($A8>COUNTIF($J3:W3,\"عسل يمين \"),\"عسل يمين \",IF($B8>COUNTIF($J3:W3,\"حبوب اللقاح\"),\"حبوب اللقاح\",IF($C8>COUNTIF($J3:W3,\"مضاف اساس\"),\"مضاف اساس\",IF($D8>COUNTIF($J3:W3,\"حضنة مفتوحة\"),\"حضنة مفتوحة\",IF($E8>COUNTIF($J3:W3,\"حضنة مغلقة\"),\"حضنة مغلقة\",IF($F8>COUNTIF($J3:W3,\"مضاف الاساس\"),\"مضاف الاساس\",IF($G8>COUNTIF($J3:W3,\"حبوب اللقاح يسار\"),\"حبوب اللقاح يسار\",IF($H8>COUNTIF($J3:W3,\"عسل يسار \"),\"عسل يسار \",\"\"))))))))","v":""},{"$f":"IF($A8>COUNTIF($J3:X3,\"عسل يمين \"),\"عسل يمين \",IF($B8>COUNTIF($J3:X3,\"حبوب اللقاح\"),\"حبوب اللقاح\",IF($C8>COUNTIF($J3:X3,\"مضاف اساس\"),\"مضاف اساس\",IF($D8>COUNTIF($J3:X3,\"حضنة مفتوحة\"),\"حضنة مفتوحة\",IF($E8>COUNTIF($J3:X3,\"حضنة مغلقة\"),\"حضنة مغلقة\",IF($F8>COUNTIF($J3:X3,\"مضاف الاساس\"),\"مضاف الاساس\",IF($G8>COUNTIF($J3:X3,\"حبوب اللقاح يسار\"),\"حبوب اللقاح يسار\",IF($H8>COUNTIF($J3:X3,\"عسل يسار \"),\"عسل يسار \",\"\"))))))))","v":""},{"$f":"IF($A8>COUNTIF($J3:Y3,\"عسل يمين \"),\"عسل يمين \",IF($B8>COUNTIF($J3:Y3,\"حبوب اللقاح\"),\"حبوب اللقاح\",IF($C8>COUNTIF($J3:Y3,\"مضاف اساس\"),\"مضاف اساس\",IF($D8>COUNTIF($J3:Y3,\"حضنة مفتوحة\"),\"حضنة مفتوحة\",IF($E8>COUNTIF($J3:Y3,\"حضنة مغلقة\"),\"حضنة مغلقة\",IF($F8>COUNTIF($J3:Y3,\"مضاف الاساس\"),\"مضاف الاساس\",IF($G8>COUNTIF($J3:Y3,\"حبوب اللقاح يسار\"),\"حبوب اللقاح يسار\",IF($H8>COUNTIF($J3:Y3,\"عسل يسار \"),\"عسل يسار \",\"\"))))))))","v":""}]
[null,null,null,null,null,null,null,null,null,null,1,2,3,4,5,6,7,8,9,10,11,12,13,14,15,16,null,"حضنة مفتوحة"]
[null,"متال رقم 1",null,null,null,null,null,null,null,null,{"$f":"K3","v":"عسل يمين "},{"$f":"L3","v":"عسل يمين "},"حبوب اللقاح","مضاف اساس","حضنة مفتوحة","حضنة مفتوحة","حضنة مفتوحة","حضنة مغلقة","حضنة مغلقة","مضاف الاساس","حبوب اللقاح يسار","عسل يسار ","عسل يسار ","","",{"$f":"Z3","v":""},null,"حضنة مغلقة"]
["اطار","اطار","اطار","اطار","اطار","اطار","اطار","اطار",null,null,null,null,null,null,null,null,null,null,null,null,null,null,null,null,null,null,null,"عسل مختوم"]
["العسل يمين","حبوب اللقاح","مضاف اساس","حضنة مفتوحة","حضنة مغلقة","مضاف الاساس","حبوب اللقاح","العسل يسار",null,null,null,null,null,null,null,null,null,null,null,null,null,null,null,null,null,null,null,"حبوب اللقاح"]
[2,1,1,3,2,1,1,2,null,null,null,null,null,null,null,null,null,null,null,null,null,null,null,null,null,null,null,"مضاف"]
[]
[]
[]
[null,null,null,null,null,null,null,null,null,null,null,null,null,null,null,null,null,null,null,null,null,null,null,null,null,null,null,"مضاف اساس"]
[]
[null,null,null,null,null,null,null,null,null,null,"الاطارات"]

{"sheet":"Feuil2","index":1,"n_rows":0,"n_cols":0,"rows_kept":0,"cut":false,"hidden":false,"merged":[]}

{"sheet":"Feuil3","index":2,"n_rows":0,"n_cols":0,"rows_kept":0,"cut":false,"hidden":false,"merged":[]}